bitfinex-derivatives/quotes_ETHF0:USTF0_20250919
["timestamp","ask_amount","ask_price","bid_price","bid_amount"]
[1758254497726,6.27169711,4550.6,4550.5,1.0219]
[1758254498621,3.2078,4550.9,4550.5,1.2372]
[1758254498829,3.2078,4551.4,4551.3,0.3864]
[1758254499023,3.2078,4551.4,4551.3,0.9574]
[1758254499024,3.75071083,4551.4,4551.3,0.9574]
[1758254500218,3.9739366,4551.4,4551.3,0.9574]
[1758254500618,3.75071083,4551.4,4551.3,0.9574]
[1758254501022,3.75071083,4551.4,4551.3,0.571]
[1758254501221,3.9741539,4551.4,4551.3,0.571]
[1758254502025,3.9741539,4551.4,4551.3,0.3864]
[1758254502327,3.2078,4551.9,4551.8,1.3573]
[1758254502520,3.2078,4551.9,4551.8,1.5843]
[1758254502922,3.2078,4551.9,4551.8,1.3573]
[1758254503127,3.2078,4551.9,4551.8,1.5843]
[1758254503525,3.2078,4551.9,4551.8,1.3573]
[1758254503730,3.2078,4551.9,4551.8,1.5843]
[1758254506731,6.64300621,4552.5,4552.0,0.2239]
[1758254507032,0.54392452,4552.4,4552.3,0.571]
[1758254507328,3.43520621,4552.1,4552.0,0.2239]
[1758254507533,4.20245254,4552.1,4551.7,0.571]
[1758254507833,3.2078,4551.8,4551.7,0.571]
[1758254508023,3.97504633,4551.8,4551.7,0.571]
[1758254510627,7.18693073,4551.8,4551.7,0.571]
[1758254510824,7.41023464,4551.8,4551.7,0.571]
[1758254511029,15.07244085,4551.8,4551.5,0.7949]
[1758254511229,0.76722843,4551.7,4551.1,0.571]
[1758254511432,6.64300621,4551.2,4551.1,0.571]
[1758254511734,7.18693073,4551.2,4551.1,0.571]
[1758254514536,7.18693073,4551.2,4551.1,1.9844]
[1758254516726,3.75172452,4551.2,4551.1,2.7623]
[1758254516933,3.2078,4551.2,4551.1,2.7623]
[1758254518031,17.85820621,4551.7,4551.6,0.9199]
[1758254518032,21.06600621,4551.7,4551.6,0.9199]
[1758254518232,21.61016376,4551.7,4551.6,0.9199]
[1758254518431,21.61016376,4551.7,4551.6,1.3001]
[1758254518837,18.17495755,4551.7,4551.6,1.3001]
[1758254519033,17.94795755,4551.7,4551.6,1.3001]
[1758254519335,12.70695755,4551.7,4551.6,1.3001]
[1758254519638,12.1628,4551.7,4551.6,1.3001]
[1758254520236,12.1628,4551.7,4551.6,1.5271]
[1758254523233,12.1628,4551.7,4551.6,0.5403]
[1758254523935,12.1628,4551.7,4551.6,1.3001]
[1758254524130,5.241,4553.0,4551.6,1.3001]
[1758254524131,3.2078,4552.2,4551.6,5.3001]
[1758254524336,3.2078,4552.8,4552.5,0.2258]
[1758254524535,3.2078,4552.8,4552.7,1.3001]
[1758254524740,3.2078,4552.8,4552.7,1.5271]
[1758254524937,3.2078,4552.8,4552.7,1.1469]
[1758254525133,3.2078,4552.8,4552.7,0.9199]
[1758254525338,3.2078,4552.8,4552.7,1.1469]
[1758254525644,3.2078,4552.8,4552.7,1.5271]
[1758254526737,3.2078,4552.8,4552.7,1.1469]
[1758254526942,3.2078,4552.8,4552.7,0.5403]
[1758254527144,7.42745,4552.8,4552.5,0.2258]
[1758254527456,3.43520621,4552.6,4552.0,0.2258]
[1758254527642,3.2078,4552.1,4552.0,1.1457]
[1758254527946,3.2078,4552.1,4552.0,0.7661]
[1758254529947,3.2078,4552.1,4552.0,1.5259]
[1758254534249,3.2078,4552.1,4552.0,0.7661]
[1758254534441,3.2078,4552.1,4552.0,1.1457]
[1758254534642,3.2078,4552.1,4552.0,1.5259]
[1758254536244,12.89548001,4552.1,4551.8,1.8392]
[1758254536447,3.43520621,4551.9,4551.8,1.8392]
[1758254536644,4.42885037,4551.9,4551.8,1.8392]
[1758254536944,4.20596242,4551.9,4551.8,2.3795]
[1758254537146,6.40596242,4551.9,4551.8,2.3795]
[1758254538341,19.08216863,4551.9,4551.8,0.8849]
[1758254538645,19.30502879,4551.9,4551.0,0.2258]
[1758254538847,3.2078,4551.6,4551.5,0.7661]
[1758254539046,3.97855621,4551.6,4551.5,0.7661]
[1758254539249,3.97855621,4551.6,4551.5,1.5259]
[1758254539946,7.41376242,4551.6,4551.5,1.1457]
[1758254540145,7.41376242,4551.6,4551.5,0.7661]
[1758254540750,3.97855621,4551.6,4551.5,0.7661]
[1758254542447,3.4348,4551.6,4551.5,0.7661]
[1758254543954,3.4348,4551.6,4551.2,0.0219]
[1758254543955,8.20100992,4551.6,4551.2,0.0219]
[1758254544151,3.43520621,4551.3,4551.2,0.0219]
[1758254544359,4.42841613,4551.3,4551.2,0.0219]
[1758254544655,4.42841613,4551.3,4551.1,1.4134]
[1758254544855,0.227,4551.2,4551.1,1.4134]
[1758254545057,3.43520621,4551.3,4551.1,1.793]
[1758254545258,3.43520621,4551.3,4551.2,0.7598]
[1758254545556,3.66220621,4551.3,4551.2,0.7598]
[1758254546052,3.66220621,4551.3,4551.2,1.3001]
[1758254547049,3.2078,4552.1,4552.0,1.5259]
[1758254547254,3.2078,4552.1,4552.0,1.7529]
[1758254547552,3.2078,4552.6,4552.5,1.5259]
[1758254547954,3.2078,4552.6,4552.5,0.7661]
[1758254549252,3.2078,4552.6,4552.5,1.1457]
[1758254551654,3.2078,4552.6,4552.5,1.5259]
[1758254552058,3.2078,4552.6,4552.5,0.7661]
[1758254552662,3.2078,4552.6,4552.5,1.5396]
[1758254553464,3.2078,4552.6,4552.5,0.7661]
[1758254554574,3.2078,4552.6,4552.5,1.1594]
[1758254555071,8.19561571,4552.6,4552.0,0.2477]
[1758254555266,6.64300621,4552.1,4552.0,0.8278]
[1758254555466,9.6154656,4552.1,4552.0,0.8278]
[1758254555667,9.6154656,4552.1,4552.0,0.8059]
[1758254557167,9.6154656,4552.1,4552.0,1.1992]
[1758254558471,9.6154656,4552.1,4552.0,1.5794]
[1758254559271,9.3884656,4552.1,4552.0,1.5794]
[1758254559473,9.6154656,4552.1,4552.0,1.1992]
[1758254560268,3.4348,4552.1,4552.0,1.5794]
[1758254560474,6.87000621,4552.1,4552.0,1.5794]
[1758254563568,7.41643287,4552.1,4552.0,1.1992]
[1758254563774,10.10197712,4552.1,4552.0,0.8059]
[1758254564573,12.30197712,4552.1,4552.0,0.8059]
[1758254564772,12.30201427,4552.1,4552.0,0.8059]
[1758254564973,12.30201427,4552.1,4552.0,1.1992]
[1758254566570,12.30201427,4552.1,4552.0,0.8059]
[1758254566771,15.34301427,4552.1,4551.6,0.0219]
[1758254567071,6.12075046,4551.7,4551.1,1.9935]
[1758254567366,6.26817523,4551.2,4551.1,1.9935]
[1758254567573,0.076,4550.9,4550.8,1.8648]
[1758254567874,0.84946381,4550.9,4550.8,0.7735]
[1758254568270,2.97346381,4550.9,4550.8,0.7735]
[1758254568576,6.10983904,4550.9,4550.8,0.7735]
[1758254569573,6.10983904,4550.9,4550.8,1.3536]
[1758254570576,3.90983904,4550.9,4550.8,1.3536]
[1758254575374,3.36337523,4550.9,4550.8,1.3536]
[1758254575773,0.58861923,4550.9,4550.8,1.3536]
[1758254575979,3.28737523,4550.9,4550.8,1.3536]
[1758254578073,3.91525834,4550.9,4550.8,0.5801]
[1758254578277,3.93935834,4550.9,4550.8,0.5801]
[1758254578477,3.91525834,4550.9,4550.8,0.5801]
[1758254578776,3.91525834,4550.9,4550.8,0.9823]
[1758254579077,3.83805834,4550.9,4550.8,1.3767]
[1758254579267,3.32597523,4550.9,4550.8,1.3767]
[1758254579676,3.87677159,4550.9,4550.8,1.3767]
[1758254579876,3.32597523,4550.9,4550.8,1.3767]
[1758254580378,3.87683362,4550.9,4550.8,1.3767]
[1758254581172,1.3453,4550.6,4550.5,1.6357]
[1758254581372,0.7991,4550.5,4550.0,0.0219]
[1758254581577,7.61347523,4550.1,4549.0,0.3262]
[1758254581766,7.01577523,4549.6,4549.5,1.0208]
[1758254582171,6.26817523,4549.6,4549.5,1.0208]
[1758254582874,6.64317523,4549.6,4549.5,1.0208]
[1758254583173,3.2078,4549.6,4549.5,5.6243]
[1758254584474,3.5828,4549.6,4549.5,5.6243]
[1758254584678,3.5828,4549.6,4549.5,0.6035]
[1758254584679,4.5531,4549.6,4549.5,0.6035]
[1758254585080,4.5531,4549.6,4549.5,1.0057]
[1758254585380,3.9554,4549.6,4549.5,1.628]
[1758254585775,4.5531,4549.6,4549.5,1.628]
[1758254585971,4.5531,4549.6,4549.5,1.2336]
[1758254586176,1.3453,4549.4,4549.3,2.8519]
[1758254586478,1.3453,4549.4,4549.2,1.8025]
[1758254586677,4.40567523,4549.3,4549.2,1.8025]
[1758254586880,8.24360777,4549.3,4549.2,1.8025]
[1758254587278,5.18323254,4549.3,4549.2,1.8025]
[1758254587478,4.63267523,4549.3,4549.2,1.8025]
[1758254587677,4.63267523,4549.3,4549.2,2.406]
[1758254587879,4.63267523,4549.3,4549.2,1.8025]
[1758254588676,4.03497523,4549.3,4549.0,1.5505]
[1758254588882,1.3453,4549.2,4549.1,0.6035]
[1758254589184,4.5531,4549.2,4549.1,1.0057]
[1758254589382,3.9554,4549.2,4549.0,1.5505]
[1758254589684,1.5723,4549.1,4549.0,1.5505]
[1758254590081,1.5723,4549.1,4549.0,2.154]
[1758254590282,1.5723,4549.1,4549.0,2.5562]
[1758254590783,1.5723,4549.1,4549.0,2.7841]
[1758254590984,0.9746,4549.1,4549.0,3.1785]
[1758254591686,1.5723,4549.1,4549.0,3.1785]
[1758254591985,4.63267523,4549.1,4549.0,1.5505]
[1758254592187,1.5723,4549.1,4549.0,1.5505]
[1758254592385,1.5723,4549.1,4549.0,2.5562]
[1758254592580,0.7476,4549.1,4549.0,3.1785]
[1758254592781,0.9746,4549.1,4549.0,3.1785]
[1758254595382,0.9746,4549.1,4548.7,1.6463]
[1758254595383,1.3453,4548.8,4548.7,1.6463]
[1758254595681,1.3453,4548.8,4548.5,0.6035]
[1758254595682,0.7476,4548.6,4548.5,1.628]
[1758254595882,4.1824,4548.6,4548.5,1.628]
[1758254596276,3.2078,4548.6,4548.5,1.628]
[1758254599383,4.5531,4548.6,4548.5,1.0057]
[1758254599583,4.7801,4548.6,4548.5,0.6035]
[1758254599888,4.7801,4548.6,4548.5,1.0057]
[1758254600787,4.1824,4548.6,4548.5,1.628]
[1758254601786,3.9554,4548.6,4548.5,1.628]
[1758254601990,6.49517523,4548.6,4548.5,1.628]
[1758254604595,7.84047523,4548.6,4548.5,1.628]
[1758254604991,4.1824,4548.6,4548.5,1.628]
[1758254605294,9.1964,4548.6,4548.5,1.628]
[1758254606492,9.4234,4548.6,4548.5,1.628]
[1758254606996,9.0498,4548.6,4548.5,1.628]
[1758254607595,8.4488,4548.6,4548.5,1.628]
[1758254607794,11.50917523,4548.6,4548.5,1.628]
[1758254608894,11.89577523,4548.6,4548.5,1.628]
[1758254609292,7.04647523,4548.6,4548.5,1.6008]
[1758254609493,3.9861,4548.6,4548.5,1.6008]
[1758254610697,0.7783,4548.4,4548.3,1.7386]
[1758254610993,4.39227523,4548.4,4548.3,0.9211]
[1758254612193,4.39227523,4548.4,4548.1,1.3363]
[1758254612391,1.3319,4548.2,4548.1,1.3363]
[1758254612593,1.88434806,4548.2,4547.9,0.5537]
[1758254612798,7.60007523,4548.0,4547.8,0.0219]
[1758254612994,1.3319,4547.9,4547.8,0.0219]
[1758254613496,1.3319,4547.9,4547.8,0.5756]
[1758254613792,1.3319,4547.9,4547.8,0.943]
[1758254614101,1.3319,4547.9,4547.8,0.0219]
[1758254614293,1.5579,4547.9,4547.8,0.0219]
[1758254614598,1.3319,4547.7,4547.6,1.8031]
[1758254614900,1.5579,4547.7,4547.6,1.8031]
[1758254615496,2.34729967,4547.7,4547.6,1.8031]
[1758254616198,2.11036796,4547.7,4547.6,1.8031]
[1758254616419,2.34730007,4547.7,4547.6,1.8031]
[1758254616699,2.34730007,4547.7,4547.6,2.3568]
[1758254616899,2.34730007,4547.7,4547.6,0.5537]
[1758254617400,2.11036796,4547.7,4547.6,0.5537]
[1758254617899,2.11036796,4547.7,4547.1,0.0219]
[1758254618098,4.5397,4547.3,4547.2,0.9211]
[1758254618298,7.60007523,4547.3,4547.2,0.9211]
[1758254618499,7.04647523,4547.3,4547.2,1.2935]
[1758254619698,6.26817523,4547.3,4547.2,1.2935]
[1758254620307,6.65477523,4547.3,4547.2,1.2935]
[1758254620496,7.60007523,4547.3,4547.2,1.2935]
[1758254622491,7.60007523,4547.3,4547.2,0.9211]
[1758254622702,7.60007523,4547.3,4547.2,0.5537]
[1758254623005,7.60007523,4547.3,4547.2,0.9211]
[1758254623503,7.04647523,4547.3,4547.1,1.3775]
[1758254623803,4.61827523,4547.2,4547.1,1.3775]
[1758254624000,1.5333,4547.0,4546.9,1.6751]
[1758254624198,1.7593,4547.0,4546.8,0.0219]
[1758254624594,0.5536,4546.9,4546.8,0.0219]
[1758254624798,1.3319,4546.9,4546.8,0.3674]
[1758254625003,1.5579,4546.9,4546.8,0.3674]
[1758254625302,1.5579,4546.9,4546.8,0.5537]
[1758254625497,1.5579,4546.9,4546.8,0.9211]
[1758254625696,1.3319,4546.9,4546.8,0.9211]
[1758254625894,4.44589539,4546.9,4546.8,1.2935]
[1758254626096,4.21989539,4546.9,4546.8,1.2935]
[1758254626298,4.44589539,4546.9,4546.8,1.2935]
[1758254628701,4.99949539,4546.9,4546.8,1.2935]
[1758254629303,4.99949539,4546.9,4546.5,1.8394]
[1758254629498,0.7783,4546.6,4546.5,1.8394]
[1758254629702,1.3319,4546.6,4546.5,0.2227]
[1758254629900,0.21995,4546.5,4545.5,0.2227]
[1758254630105,0.21995,4546.5,4544.5,0.2227]
[1758254630106,6.64939539,4545.8,4544.7,0.5537]
[1758254630308,6.64939539,4545.8,4544.9,0.5537]
[1758254630309,3.44159539,4545.4,4544.9,0.5537]
[1758254630503,4.21896129,4545.4,4544.9,0.5537]
[1758254630699,4.21896129,4545.4,4544.5,0.2227]
[1758254631013,8.21896129,4545.4,4544.5,0.7764]
[1758254631205,6.64939539,4544.6,4544.5,0.7764]
[1758254631427,6.87639539,4544.6,4544.5,0.7764]
[1758254631707,11.66391228,4544.6,4543.6,0.5537]
[1758254631912,6.64939539,4543.7,4543.6,0.5537]
[1758254632308,10.64939539,4543.7,4543.4,1.6088]
[1758254632505,6.88319078,4543.5,4542.5,0.7764]
[1758254632705,6.64939539,4542.6,4542.5,0.7764]
[1758254632901,3.2078,4542.6,4542.5,1.5162]
[1758254633309,3.2078,4542.6,4541.0,0.59389351]
[1758254633310,3.2078,4541.6,4541.0,0.59389351]
[1758254633508,3.2078,4541.9,4541.8,0.7398]
[1758254633710,3.2078,4541.9,4541.8,4.7398]
[1758254634101,3.2078,4541.9,4541.8,4.9758]
[1758254634102,6.64939539,4541.9,4541.8,4.9758]
[1758254634307,6.64939539,4541.9,4541.8,0.7398]
[1758254634714,3.2078,4541.9,4541.8,4.7398]
[1758254635215,3.44159539,4545.2,4541.8,4.7398]
[1758254635216,3.2078,4543.3,4543.0,0.2227]
[1758254635410,6.64939539,4543.3,4543.1,0.5537]
[1758254635614,0.7662,4543.2,4542.1,0.7443]
[1758254635815,3.44159539,4542.6,4542.5,0.298]
[1758254636011,3.44159539,4542.6,4542.5,1.0423]
[1758254636514,3.44159539,4542.6,4542.5,0.9813]
[1758254636703,3.2078,4542.8,4542.6,0.7443]
[1758254636902,3.2078,4543.3,4543.1,0.7443]
[1758254637107,3.2078,4543.3,4543.2,0.9813]
[1758254637307,3.44159539,4543.6,4543.5,1.0423]
[1758254637712,3.44159539,4543.6,4543.0,0.298]
[1758254637910,3.44159539,4543.6,4542.5,3.5058]
[1758254637911,3.44159539,4543.1,4542.5,0.7443]
[1758254638112,6.64939539,4542.6,4541.9,0.7519]
[1758254638314,3.2078,4542.0,4541.5,0.298]
[1758254638506,4.15689539,4541.6,4541.4,2.5393]
[1758254638706,4.15689539,4541.6,4541.1,0.237]
[1758254638707,3.9231,4541.5,4541.1,0.237]
[1758254638921,0.7153,4541.4,4541.2,0.7519]
[1758254639211,3.44159539,4541.2,4541.1,0.7519]
[1758254640211,3.2078,4541.5,4541.1,0.7519]
[1758254640516,3.44159539,4541.2,4541.1,0.7519]
[1758254641216,3.44159539,4541.2,4541.0,1.33899351]
[1758254641217,0.7153,4541.1,4541.0,1.33899351]
[1758254641512,3.44159539,4541.2,4541.0,2.09089351]
[1758254641713,3.9231,4541.5,4541.1,0.7519]
[1758254641915,3.2078,4541.5,4541.2,0.7519]
[1758254642119,3.2078,4541.5,4541.4,0.7519]
[1758254642322,3.2078,4541.5,4541.1,0.7519]
[1758254642614,3.2078,4541.5,4541.3,0.7519]
[1758254643218,3.2078,4541.5,4541.4,4.0]
[1758254643416,3.2078,4542.1,4541.5,0.3018]
[1758254643610,3.2078,4542.1,4541.6,0.7519]
[1758254643814,3.44159539,4541.7,4541.0,1.33899351]
[1758254644012,3.2078,4541.6,4541.5,0.3018]
[1758254644216,3.2078,4541.6,4541.5,1.0537]
[1758254644519,3.2078,4541.6,4541.5,5.0537]
[1758254645320,3.2078,4541.6,4541.5,5.2927]
[1758254646218,3.2078,4541.6,4541.5,0.7519]
[1758254646515,7.36469539,4541.6,4541.5,0.239]
[1758254646911,0.1957,4541.5,4541.0,1.33899351]
[1758254647114,7.36469539,4541.1,4541.0,1.33899351]
[1758254647321,3.9231,4541.1,4541.0,0.00379351]
[1758254647622,3.9231,4541.1,4541.0,0.75569351]
[1758254647623,3.2078,4541.1,4541.0,0.75569351]
[1758254647822,3.2078,4541.1,4541.0,1.29749351]
[1758254648025,3.2078,4541.6,4541.0,4.30559351]
[1758254648220,3.2078,4541.6,4541.2,0.7519]
[1758254648221,4.15689539,4541.4,4541.2,0.7519]
[1758254648519,3.44159539,4541.4,4541.0,0.30559351]
[1758254648723,3.44159539,4541.4,4541.3,0.9919]
[1758254648917,4.15689539,4541.4,4541.2,0.24]
[1758254649226,3.9231,4541.6,4541.2,0.24]
[1758254649521,0.7153,4541.5,4541.2,0.24]
[1758254649716,3.2078,4541.6,4541.2,0.24]
[1758254649920,0.39618,4541.3,4541.2,0.24]
[1758254650117,1.11148,4541.3,4541.2,0.24]
[1758254650319,0.39618,4541.3,4541.2,0.9919]
[1758254650626,1.11148,4541.3,4541.1,1.3357]
[1758254650821,1.11148,4541.3,4541.2,0.24]
[1758254651223,0.7153,4541.2,4541.1,0.73279]
[1758254651527,0.39629,4540.0,4539.9,0.7519]
[1758254653225,0.39629,4540.0,4539.9,0.9919]
[1758254653420,0.39629,4540.0,4539.9,0.7519]
[1758254653620,0.39629,4540.0,4539.9,0.9919]
[1758254653815,0.39632,4539.6,4539.0,0.3018]
[1758254654025,0.39636,4539.2,4539.0,0.3018]
[1758254654226,0.39636,4539.2,4539.1,3.4478]
[1758254655222,0.39636,4539.2,4539.1,0.24]
[1758254655426,0.99093,4539.1,4538.6,3.2078]
[1758254655626,0.39639,4538.8,4538.7,0.24]
[1758254655821,0.7153,4539.4,4538.7,0.24]
[1758254656125,0.9909,4539.2,4538.8,0.7519]
[1758254656431,0.39638,4538.9,4538.8,0.7519]
[1758254656729,0.39638,4538.9,4538.8,0.9919]
[1758254656931,0.39638,4538.9,4538.8,4.9919]
[1758254657230,0.39644,4538.3,4538.2,0.7519]
[1758254657424,0.39644,4538.3,4538.2,0.9919]
[1758254657619,1.29895,4539.5,4538.2,0.9919]
[1758254657620,0.39643,4538.5,4538.3,0.7519]
[1758254657824,0.3964,4538.8,4538.6,0.7519]
[1758254658021,0.39639,4538.9,4538.7,0.24]
[1758254658220,0.39639,4538.9,4538.8,0.7519]
[1758254658624,0.39637,4539.1,4539.0,0.3018]
[1758254658831,0.39637,4539.1,4539.0,1.0537]
[1758254659022,0.39637,4539.1,4539.0,5.0537]
[1758254660033,0.39637,4539.1,4539.0,5.2937]
[1758254660233,0.39637,4539.1,4539.0,5.0537]
[1758254660426,0.95350893,4539.1,4539.0,5.2937]
[1758254660934,0.39637,4539.1,4539.0,5.2937]
[1758254661321,0.5535908,4539.1,4539.0,4.5418]
[1758254661537,0.39636,4539.2,4539.0,4.5418]
[1758254661745,0.39636,4539.2,4539.1,3.2078]
[1758254661940,0.39636,4539.2,4539.1,3.9597]
[1758254662442,0.94524205,4539.2,4539.1,4.1997]
[1758254662942,0.94524205,4539.2,4539.1,5.1776]
[1758254663141,0.54888205,4539.2,4539.1,9.1776]
[1758254663342,0.39635,4539.3,4539.2,1.7298]
[1758254663736,0.94533581,4539.3,4539.2,1.7298]
[1758254663935,1.46603581,4539.3,4539.2,1.7298]
[1758254664132,1.46603581,4539.3,4539.2,1.9698]
[1758254664538,0.94533581,4539.3,4539.2,1.9698]
[1758254664744,0.94533581,4539.3,4539.2,1.7298]
[1758254664939,0.94533581,4539.3,4539.2,1.9698]
[1758254665741,0.94533581,4539.3,4539.2,1.9688]
[1758254668345,0.94533581,4539.3,4539.2,1.7298]
[1758254668748,0.94533581,4539.3,4539.2,1.9688]
[1758254668950,0.54898581,4539.3,4539.2,9.41039539]
[1758254669150,0.54898581,4539.3,4539.2,1.9688]
[1758254669350,0.39634,4539.4,4539.3,1.7534]
[1758254669540,0.93530306,4539.4,4539.3,1.7534]
[1758254669947,0.39634,4539.4,4539.3,1.7534]
[1758254670445,0.89734,4539.4,4539.3,1.7534]
[1758254670651,2.16684,4539.4,4539.3,1.9924]
[1758254670847,0.39636,4539.2,4539.1,3.7252]
[1758254671050,2.16686,4539.2,4539.1,3.7252]
[1758254671251,2.16686,4539.2,4539.1,3.9642]
[1758254671855,2.16686,4539.2,4539.1,4.4425]
[1758254672148,2.69612311,4539.2,4539.1,1.2347]
[1758254672350,0.89744,4538.3,4538.2,0.7173]
[1758254672554,2.16695,4538.1,4538.0,0.5174]
[1758254672744,2.0755,4538.0,4537.4,3.9251]
[1758254672946,0.89751,4537.5,4537.4,4.9612]
[1758254673145,0.89751,4537.5,4537.4,5.2002]
[1758254673455,0.89751,4537.5,4537.4,4.9612]
[1758254673659,0.89751,4537.5,4537.4,5.2002]
[1758254674048,0.89751,4537.5,4537.4,4.9612]
[1758254674758,0.89751,4537.5,4537.4,5.2002]
[1758254674957,1.67851,4537.5,4537.4,4.9612]
[1758254675257,2.16701,4537.5,4537.4,5.2002]
[1758254675456,2.16701,4537.5,4537.4,4.4829]
[1758254675861,2.16701,4537.5,4537.4,4.2439]
[1758254676060,2.16701,4537.5,4537.4,5.1992]
[1758254676260,2.47201,4537.5,4537.4,3.9632]
[1758254676461,2.47201,4537.5,4537.4,0.7554]
[1758254677257,0.781,4537.6,4536.9,4.9612]
[1758254677459,0.39652,4537.4,4537.1,1.0361]
[1758254677655,3.2078,4537.9,4537.3,1.7534]
[1758254677656,0.3965,4537.7,4537.3,1.7534]
[1758254677851,0.781,4539.1,4538.4,1.0361]
[1758254678160,1.282,4539.1,4539.0,1.0361]
[1758254678364,1.282,4539.1,4538.5,3.2078]
[1758254678365,0.39641,4538.6,4538.5,3.2078]
[1758254678559,0.39645,4538.2,4538.1,36.4]
[1758254678756,1.17745,4538.2,4538.1,36.639]
[1758254678957,1.67845,4538.2,4538.1,1.7534]
[1758254679156,0.39645,4538.2,4538.1,1.9924]
[1758254679558,0.39643,4538.4,4538.2,0.7173]
[1758254679764,0.39643,4538.4,4538.3,5.2002]
[1758254679959,1.17737,4539.1,4539.0,1.0361]
[1758254680161,0.3964,4538.8,4538.6,3.9251]
[1758254680363,1.086,4539.0,4538.5,37.1173]
[1758254680364,0.39641,4538.6,4538.5,37.1173]
[1758254680562,0.39641,4538.6,4538.5,40.8523]
[1758254680756,0.39641,4538.6,4538.5,44.8523]
[1758254682068,0.39641,4538.6,4538.5,44.6143]
[1758254682363,0.39641,4538.6,4538.5,44.8523]
[1758254682763,0.3964,4538.8,4538.5,44.135]
[1758254683070,0.3964,4538.8,4538.7,1.7534]
[1758254683571,0.3964,4538.8,4538.7,1.9914]
[1758254684264,0.39633,4539.5,4539.4,1.0361]
[1758254684473,0.39633,4539.5,4539.4,1.2741]
[1758254684659,0.39632,4539.7,4539.4,1.2741]
[1758254684861,0.305,4540.5,4540.0,1.0361]
[1758254685168,1.282,4540.2,4540.1,1.4727]
[1758254685367,2.16677,4540.2,4540.1,0.7554]
[1758254685768,2.16677,4540.2,4540.1,1.9914]
[1758254685769,1.282,4540.2,4540.1,1.9914]
[1758254686069,0.39627,4540.3,4540.1,1.9914]
[1758254686257,1.2945,4540.0,4539.9,0.238]
[1758254686458,1.69079,4540.0,4539.9,0.7554]
[1758254686662,0.39634,4539.4,4539.3,3.2078]
[1758254686867,2.16684,4539.4,4539.3,3.9632]
[1758254687068,2.16684,4539.4,4539.3,5.1992]
[1758254687258,0.305,4539.5,4539.3,5.1992]
[1758254687259,0.39634,4539.5,4539.3,5.1992]
[1758254687464,0.39633,4539.6,4539.4,1.0361]
[1758254687674,0.39633,4539.6,4539.5,2.2364]
[1758254687871,0.39633,4539.6,4539.5,5.31036365]
[1758254688374,0.39631,4539.8,4539.7,1.7534]
[1758254688572,0.39631,4539.8,4539.7,1.9914]
[1758254688765,0.39629,4540.0,4539.9,1.7534]
[1758254688962,0.39629,4540.0,4539.9,5.1992]
[1758254691670,0.39626,4540.4,4540.2,0.7173]
[1758254691970,0.39626,4540.4,4540.3,1.9904]
[1758254692273,0.39626,4540.4,4540.3,38.3904]
[1758254692875,0.39624,4540.6,4540.3,37.6731]
[1758254693072,3.2078,4541.3,4540.6,1.11353]
[1758254693271,2.16662,4541.9,4541.8,0.5174]
[1758254693468,1.67812,4541.9,4541.8,1.9904]
[1758254693774,0.39612,4541.9,4541.8,1.9904]
[1758254693974,0.781,4542.4,4541.8,1.9904]
[1758254694671,0.781,4542.4,4540.5,0.2892]
[1758254694672,0.501,4540.6,4540.5,3.2078]
[1758254694873,1.086,4540.5,4540.0,3.2078]
[1758254695073,1.282,4540.1,4540.0,4.9612]
[1758254695269,0.781,4541.2,4540.6,1.7534]
[1758254695466,1.7705,4541.2,4541.1,0.5174]
[1758254695665,1.7705,4541.2,4541.1,0.238]
[1758254695869,1.7705,4541.2,4540.2,37.1659]
[1758254695870,1.0016,4540.6,4540.2,0.7659]
[1758254696073,0.51,4540.0,4539.9,4.188]
[1758254696276,1.222,4540.0,4539.9,5.1919]
[1758254697274,1.7136,4540.0,4539.9,3.6911]
[1758254697476,0.2892,4540.0,4539.3,3.2078]
[1758254697675,1.0012,4539.5,4539.4,0.2506]
[1758254698379,1.0012,4539.5,4539.4,0.0126]
[1758254698579,1.0012,4539.5,4539.4,0.2506]
[1758254698877,1.0012,4539.5,4539.4,0.0126]
[1758254699074,1.0012,4539.5,4539.4,0.2496]
[1758254699274,1.39753,4539.5,4539.4,0.2496]
[1758254700376,2.41623,4539.5,4539.4,0.7466]
[1758254700676,0.39633,4539.5,4539.4,1.6924]
[1758254700876,0.39633,4539.5,4539.4,1.9294]
[1758254701577,0.7529,4540.7,4540.4,0.6997]
[1758254701776,3.2078,4540.9,4540.5,0.9367]
[1758254701777,0.39624,4540.6,4540.5,0.9367]
[1758254701977,1.14914,4540.6,4540.5,0.237]
[1758254702281,1.14914,4540.6,4540.5,0.9367]
[1758254702679,1.14916,4540.3,4540.2,3.2078]
[1758254702875,1.14916,4540.3,4540.2,3.4448]
[1758254703070,1.14921,4539.8,4539.7,3.9075]
[1758254703381,0.39631,4539.8,4539.7,4.1445]
[1758254704075,0.39631,4539.8,4539.7,7.21846365]
[1758254704475,0.39631,4539.8,4539.7,43.61846365]
[1758254704672,0.39628,4540.2,4539.8,0.6997]
[1758254704879,0.39628,4540.1,4540.0,0.9794]
[1758254705382,0.39628,4540.1,4540.0,1.9721]
[1758254705881,0.39628,4540.1,4540.0,2.2091]
[1758254708581,3.6971,4540.9,4540.8,0.9927]
[1758254708780,3.6971,4540.9,4540.8,1.2297]
[1758254708781,4.45,4540.9,4540.8,1.2297]
[1758254709281,0.7529,4541.4,4540.8,1.9294]
[1758254709482,1.2422,4541.4,4541.3,1.6924]
[1758254709682,0.88546,4541.4,4541.3,1.9284]
[1758254710191,2.14706,4541.4,4541.3,36.636]
[1758254710486,0.39616,4541.4,4541.3,37.3357]
[1758254710883,1.14906,4541.4,4541.3,37.3357]